[Event "*** Titled Tuesday Blitz"]
[Site "Chess.com"]
[Date "2018.08.07"]
[Round "8"]
[White "senecacrane"]
[Black "narutosmith"]
[Result "0-1"]
[WhiteElo "2118"]
[BlackElo "2114"]
[TimeControl "180+2"]
[EndTime "14:47:48 PDT"]
[Termination "narutosmith won by resignation"]

1. d4 {[%clk 0:03:01.9]} 1... Nf6 {[%clk 0:03:00.3]} 2. c4 {[%clk 0:03:02.4]}
2... c5 {[%clk 0:03:01.3]} 3. d5 {[%clk 0:03:03.2]} 3... e6 {[%clk 0:03:02.3]}
4. Nc3 {[%clk 0:03:03.7]} 4... exd5 {[%clk 0:03:03.3]} 5. cxd5 {[%clk
0:03:04.6]} 5... d6 {[%clk 0:03:04.6]} 6. e4 {[%clk 0:03:05.4]} 6... g6 {[%clk
0:03:05.4]} 7. Nge2 {[%clk 0:03:06.4]} 7... Bg7 {[%clk 0:03:05.5]} 8. Ng3 {[%clk
0:03:07.9]} 8... O-O {[%clk 0:03:05.4]} 9. Be2 {[%clk 0:03:08.6]} 9... a6 {[%clk
0:03:05.2]} 10. a4 {[%clk 0:03:09.2]} 10... Nbd7 {[%clk 0:03:01.6]} 11. O-O
{[%clk 0:03:09.9]} 11... Re8 {[%clk 0:03:01.9]} 12. h3 {[%clk 0:03:09.5]} 12...
Rb8 {[%clk 0:02:59.5]} 13. Bg5 {[%clk 0:03:10.3]} 13... Qc7 {[%clk 0:02:51.6]}
14. Qd2 {[%clk 0:03:10.3]} 14... c4 {[%clk 0:02:48.3]} 15. f4 {[%clk 0:02:41.9]}
15... b5 {[%clk 0:02:45.8]} 16. axb5 {[%clk 0:02:37]} 16... axb5 {[%clk
0:02:47.7]} 17. e5 {[%clk 0:02:38.5]} 17... dxe5 {[%clk 0:02:37.8]} 18. f5
{[%clk 0:02:39.1]} 18... e4 {[%clk 0:02:34.7]} 19. Bf4 {[%clk 0:02:31.2]} 19...
Ne5 {[%clk 0:02:13.4]} 20. Ngxe4 {[%clk 0:02:21.2]} 20... Nxe4 {[%clk
0:01:55.1]} 21. Nxe4 {[%clk 0:02:20.1]} 21... Bxf5 {[%clk 0:01:53]} 22. d6
{[%clk 0:02:13.7]} 22... Qb6+ {[%clk 0:01:44.2]} 23. Be3 {[%clk 0:02:14.9]}
23... Qc6 {[%clk 0:01:44]} 24. Nc5 {[%clk 0:01:58.2]} 24... Nd3 {[%clk
0:01:18.2]} 25. Bf3 {[%clk 0:01:51.8]} 25... Qxd6 {[%clk 0:01:14.3]} 26. Ra6
{[%clk 0:01:43.3]} 26... Qe5 {[%clk 0:00:47.9]} 27. Nxd3 {[%clk 0:01:22.4]}
27... Qxe3+ {[%clk 0:00:47]} 28. Qxe3 {[%clk 0:01:22.9]} 28... Rxe3 {[%clk
0:00:48.1]} 29. Nf4 {[%clk 0:01:15.7]} 29... Bxb2 {[%clk 0:00:47.3]} 30. Nd5
{[%clk 0:01:11.6]} 30... Re6 {[%clk 0:00:32.1]} 31. Ra7 {[%clk 0:01:03.5]} 31...
Bd4+ {[%clk 0:00:32.1]} 0-1

[Event "*** Titled Tuesday Blitz"]
[Site "Chess.com"]
[Date "2018.08.07"]
[Round "8"]
[White "sandager"]
[Black "DACF2905"]
[Result "0-1"]
[WhiteElo "2029"]
[BlackElo "2114"]
[TimeControl "180+2"]
[EndTime "14:48:04 PDT"]
[Termination "DACF2905 won by resignation"]

1. e4 {[%clk 0:03:00.3]} 1... c5 {[%clk 0:03:00.5]} 2. Nf3 {[%clk 0:02:59.9]}
2... e6 {[%clk 0:03:01.7]} 3. d4 {[%clk 0:03:01]} 3... cxd4 {[%clk 0:03:03]} 4.
Nxd4 {[%clk 0:03:02.2]} 4... a6 {[%clk 0:03:04.5]} 5. Nc3 {[%clk 0:03:03.4]}
5... Bc5 {[%clk 0:03:05.3]} 6. Be3 {[%clk 0:03:00.4]} 6... d6 {[%clk 0:03:04.2]}
7. Be2 {[%clk 0:02:58.7]} 7... Nc6 {[%clk 0:03:05.2]} 8. O-O {[%clk 0:02:53.2]}
8... Nxd4 {[%clk 0:03:04.9]} 9. Bxd4 {[%clk 0:02:53.2]} 9... Nf6 {[%clk
0:03:04.2]} 10. e5 {[%clk 0:02:47.4]} 10... Bxd4 {[%clk 0:03:04.3]} 11. Qxd4
{[%clk 0:02:45.4]} 11... dxe5 {[%clk 0:03:05.4]} 12. Qxe5 {[%clk 0:02:43.9]}
12... O-O {[%clk 0:03:06.2]} 13. Rad1 {[%clk 0:02:42.1]} 13... Qb6 {[%clk
0:03:06.9]} 14. Rd3 {[%clk 0:02:29.4]} 14... Bd7 {[%clk 0:03:05.1]} 15. Rg3
{[%clk 0:02:26.7]} 15... Qd8 {[%clk 0:02:56.9]} 16. Ne4 {[%clk 0:02:21.8]} 16...
Kh8 {[%clk 0:02:57.2]} 17. Rd1 {[%clk 0:02:20.4]} 17... Rg8 {[%clk 0:02:10.9]}
18. Nxf6 {[%clk 0:01:36.5]} 18... gxf6 {[%clk 0:02:10.4]} 19. Qd4 {[%clk
0:01:36.2]} 19... Bc6 {[%clk 0:01:51.8]} 20. Qh4 {[%clk 0:01:17.5]} 20... Qe7
{[%clk 0:01:36.9]} 21. Bd3 {[%clk 0:01:04.8]} 21... Rg6 {[%clk 0:01:22.2]} 22.
Bxg6 {[%clk 0:01:03.1]} 22... fxg6 {[%clk 0:01:23.3]} 23. Rxg6 {[%clk 0:01:04]}
23... Rf8 {[%clk 0:01:15.8]} 24. Rh6 {[%clk 0:01:01.4]} 24... Qg7 {[%clk
0:01:16.3]} 25. g3 {[%clk 0:00:45.3]} 25... b5 {[%clk 0:01:16]} 26. Rd6 {[%clk
0:00:36.9]} 26... Bd5 {[%clk 0:01:15.6]} 27. Rxa6 {[%clk 0:00:22.1]} 27... f5
{[%clk 0:01:16.7]} 28. Ra3 {[%clk 0:00:09.6]} 28... f4 {[%clk 0:01:13.2]} 29.
Rc3 {[%clk 0:00:08.9]} 29... b4 {[%clk 0:01:09.1]} 30. Rd3 {[%clk 0:00:08.3]}
30... Be4 {[%clk 0:01:04.4]} 31. Rd4 {[%clk 0:00:06.6]} 31... Qxd4 {[%clk
0:01:03.7]} 32. Rxe6 {[%clk 0:00:06.5]} 0-1

[Event "*** Titled Tuesday Blitz"]
[Site "Chess.com"]
[Date "2018.08.07"]
[Round "8"]
[White "David_Klein"]
[Black "nonscitis"]
[Result "0-1"]
[WhiteElo "2500"]
[BlackElo "2460"]
[TimeControl "180+2"]
[EndTime "14:48:17 PDT"]
[Termination "nonscitis won by checkmate"]

1. e4 {[%clk 0:03:01.9]} 1... c5 {[%clk 0:02:57.5]} 2. Nf3 {[%clk 0:03:02.3]}
2... Nc6 {[%clk 0:02:57.2]} 3. Bb5 {[%clk 0:03:03]} 3... g6 {[%clk 0:02:54.1]}
4. O-O {[%clk 0:03:03.7]} 4... Bg7 {[%clk 0:02:54.6]} 5. Re1 {[%clk 0:03:04.8]}
5... Nf6 {[%clk 0:02:55.4]} 6. e5 {[%clk 0:03:06.1]} 6... Nd5 {[%clk 0:02:55.9]}
7. Nc3 {[%clk 0:03:07.6]} 7... Nc7 {[%clk 0:02:55.8]} 8. Bxc6 {[%clk 0:03:08.8]}
8... dxc6 {[%clk 0:02:56.2]} 9. Ne4 {[%clk 0:03:10.1]} 9... b6 {[%clk
0:02:56.8]} 10. d3 {[%clk 0:03:11.6]} 10... O-O {[%clk 0:02:57.2]} 11. Bf4
{[%clk 0:03:07.3]} 11... Bg4 {[%clk 0:02:57.2]} 12. h3 {[%clk 0:03:07.6]} 12...
Ne6 {[%clk 0:02:57.6]} 13. hxg4 {[%clk 0:02:52.7]} 13... Nxf4 {[%clk 0:02:58.2]}
14. g3 {[%clk 0:02:52.6]} 14... Ne6 {[%clk 0:02:58.2]} 15. Kg2 {[%clk
0:02:53.8]} 15... Qd5 {[%clk 0:02:54.8]} 16. Qe2 {[%clk 0:02:50.3]} 16... Nd4
{[%clk 0:02:46.7]} 17. Nxd4 {[%clk 0:02:50.8]} 17... cxd4 {[%clk 0:02:45.8]} 18.
f4 {[%clk 0:02:49.5]} 18... f5 {[%clk 0:02:46.1]} 19. exf6 {[%clk 0:02:44.5]}
19... exf6 {[%clk 0:02:45.6]} 20. Qf3 {[%clk 0:02:45]} 20... Rae8 {[%clk
0:02:42.9]} 21. f5 {[%clk 0:02:45.4]} 21... Re5 {[%clk 0:02:37.3]} 22. Rf1
{[%clk 0:02:41.2]} 22... g5 {[%clk 0:02:32.5]} 23. b3 {[%clk 0:02:31.2]} 23...
Rfe8 {[%clk 0:02:30.9]} 24. a4 {[%clk 0:02:26.4]} 24... h6 {[%clk 0:02:29.6]}
25. Rae1 {[%clk 0:02:26]} 25... Kf7 {[%clk 0:02:26.7]} 26. Re2 {[%clk
0:02:24.3]} 26... Bf8 {[%clk 0:02:23]} 27. Rfe1 {[%clk 0:02:18.3]} 27... Kg7
{[%clk 0:02:23.3]} 28. Kf2 {[%clk 0:02:11.6]} 28... Bb4 {[%clk 0:02:22.9]} 29.
Rh1 {[%clk 0:02:01.3]} 29... a5 {[%clk 0:02:16.5]} 30. Kf1 {[%clk 0:02:00.2]}
30... b5 {[%clk 0:02:13]} 31. axb5 {[%clk 0:01:51.1]} 31... cxb5 {[%clk
0:02:13.1]} 32. Rh5 {[%clk 0:01:14.7]} 32... a4 {[%clk 0:02:04]} 33. bxa4 {[%clk
0:01:15.1]} 33... bxa4 {[%clk 0:02:04.5]} 34. Reh2 {[%clk 0:01:16.1]} 34... Rh8
{[%clk 0:01:54.4]} 35. Qh1 {[%clk 0:00:51.8]} 35... Rxe4 {[%clk 0:01:47.2]} 36.
Qxe4 {[%clk 0:00:47.9]} 36... Qxe4 {[%clk 0:01:47.7]} 37. dxe4 {[%clk
0:00:49.8]} 37... a3 {[%clk 0:01:49.1]} 38. e5 {[%clk 0:00:41.5]} 38... a2
{[%clk 0:01:44.1]} 39. exf6+ {[%clk 0:00:42.3]} 39... Kf7 {[%clk 0:01:40.3]} 40.
Rxh6 {[%clk 0:00:41.5]} 40... a1=Q+ {[%clk 0:01:40.5]} 41. Kg2 {[%clk
0:00:41.8]} 41... Rxh6 {[%clk 0:01:40.3]} 42. Rxh6 {[%clk 0:00:43.7]} 42... Qa8+
{[%clk 0:01:39.1]} 43. Kh2 {[%clk 0:00:43.5]} 43... Qf3 {[%clk 0:01:38]} 44.
Rh7+ {[%clk 0:00:40]} 44... Kxf6 {[%clk 0:01:38]} 45. Rh6+ {[%clk 0:00:41.5]}
45... Kf7 {[%clk 0:01:38.6]} 46. Rh7+ {[%clk 0:00:42.3]} 46... Kg8 {[%clk
0:01:39.7]} 47. Rd7 {[%clk 0:00:41.9]} 47... Be1 {[%clk 0:01:39.8]} 48. Rxd4
{[%clk 0:00:41.9]} 48... Bxg3+ {[%clk 0:01:40.4]} 49. Kg1 {[%clk 0:00:41.4]}
49... Qf2+ {[%clk 0:01:40.7]} 50. Kh1 {[%clk 0:00:42.8]} 50... Qh2# {[%clk
0:01:42.6]} 0-1

[Event "*** Titled Tuesday Blitz"]
[Site "Chess.com"]
[Date "2018.08.07"]
[Round "8"]
[White "OparinGrigoriy"]
[Black "Margency"]
[Result "1-0"]
[WhiteElo "2885"]
[BlackElo "2716"]
[TimeControl "180+2"]
[EndTime "14:48:19 PDT"]
[Termination "OparinGrigoriy won by resignation"]

1. e4 {[%clk 0:03:01.7]} 1... c5 {[%clk 0:03:00.7]} 2. Nf3 {[%clk 0:03:02.5]}
2... d6 {[%clk 0:03:01.9]} 3. Nc3 {[%clk 0:03:04.4]} 3... Nf6 {[%clk 0:03:02.5]}
4. d4 {[%clk 0:03:05.7]} 4... cxd4 {[%clk 0:03:03.5]} 5. Nxd4 {[%clk 0:03:07.2]}
5... a6 {[%clk 0:03:05.1]} 6. a3 {[%clk 0:03:08.4]} 6... e6 {[%clk 0:03:03]} 7.
g4 {[%clk 0:03:09.2]} 7... h6 {[%clk 0:02:57]} 8. h4 {[%clk 0:03:06.2]} 8... Nc6
{[%clk 0:02:54.7]} 9. Nxc6 {[%clk 0:03:05.6]} 9... bxc6 {[%clk 0:02:55.5]} 10.
Bg2 {[%clk 0:03:07.1]} 10... d5 {[%clk 0:02:51.1]} 11. g5 {[%clk 0:03:06]} 11...
hxg5 {[%clk 0:02:48.8]} 12. hxg5 {[%clk 0:03:07.4]} 12... Rxh1+ {[%clk
0:02:49.8]} 13. Bxh1 {[%clk 0:03:08.7]} 13... Nd7 {[%clk 0:02:51.3]} 14. g6
{[%clk 0:03:05.2]} 14... fxg6 {[%clk 0:02:42.9]} 15. Qg4 {[%clk 0:02:59.8]}
15... Qf6 {[%clk 0:02:00.3]} 16. Bg5 {[%clk 0:02:58.1]} 16... Qf7 {[%clk
0:01:58.2]} 17. O-O-O {[%clk 0:02:57.7]} 17... Nf6 {[%clk 0:01:53.7]} 18. Qg3
{[%clk 0:02:53]} 18... Be7 {[%clk 0:01:46]} 19. exd5 {[%clk 0:02:33.5]} 19...
cxd5 {[%clk 0:01:40.7]} 20. Kb1 {[%clk 0:01:54.4]} 20... Bb7 {[%clk 0:01:21.4]}
21. Re1 {[%clk 0:01:42.2]} 21... Rc8 {[%clk 0:01:18.8]} 22. Qh3 {[%clk
0:01:41.6]} 22... Rc6 {[%clk 0:01:06.8]} 23. Qh8+ {[%clk 0:01:28.6]} 23... Qg8
{[%clk 0:00:57.6]} 24. Qh2 {[%clk 0:01:29.5]} 24... Kf7 {[%clk 0:00:53.1]} 25.
Bxf6 {[%clk 0:01:25.8]} 25... Bxf6 {[%clk 0:00:48.9]} 26. Nxd5 {[%clk
0:01:26.9]} 26... Qc8 {[%clk 0:00:19.1]} 27. Nxf6 {[%clk 0:01:20.3]} 27... Kxf6
{[%clk 0:00:19.9]} 28. Qf4+ {[%clk 0:01:19.6]} 28... Ke7 {[%clk 0:00:20.7]} 29.
Bxc6 {[%clk 0:01:15.8]} 29... Qxc6 {[%clk 0:00:21.5]} 30. Qe5 {[%clk 0:01:14.3]}
30... Kf7 {[%clk 0:00:21.8]} 31. b3 {[%clk 0:01:15.8]} 31... Qd7 {[%clk
0:00:19.5]} 32. Kb2 {[%clk 0:01:16.8]} 32... Bd5 {[%clk 0:00:19.4]} 33. Rd1
{[%clk 0:01:16.9]} 33... Qb5 {[%clk 0:00:19.5]} 34. a4 {[%clk 0:01:16.7]} 34...
Qb7 {[%clk 0:00:20.2]} 35. Qd4 {[%clk 0:01:17.2]} 35... g5 {[%clk 0:00:19.5]}
36. c4 {[%clk 0:01:17.6]} 36... Bc6 {[%clk 0:00:20.6]} 37. Ka3 {[%clk
0:01:18.9]} 37... a5 {[%clk 0:00:21.7]} 38. Qc5 {[%clk 0:01:19.3]} 38... Qc7
{[%clk 0:00:21.6]} 39. Rd6 {[%clk 0:01:19.7]} 1-0

[Event "*** Titled Tuesday Blitz"]
[Site "Chess.com"]
[Date "2018.08.07"]
[Round "8"]
[White "AndrewDGreen"]
[Black "TijanaBlagojevic"]
[Result "0-1"]
[WhiteElo "2188"]
[BlackElo "2382"]
[TimeControl "180+2"]
[EndTime "14:48:22 PDT"]
[Termination "TijanaBlagojevic won on time"]

1. d4 {[%clk 0:03:01.9]} 1... f5 {[%clk 0:02:57.4]} 2. Bg5 {[%clk 0:03:01.3]}
2... d5 {[%clk 0:02:56]} 3. e3 {[%clk 0:03:00.9]} 3... Nd7 {[%clk 0:02:55.4]} 4.
c4 {[%clk 0:03:00.3]} 4... c6 {[%clk 0:02:54.9]} 5. cxd5 {[%clk 0:02:59]} 5...
cxd5 {[%clk 0:02:56.8]} 6. Nc3 {[%clk 0:02:57.6]} 6... Ngf6 {[%clk 0:02:57.7]}
7. Bd3 {[%clk 0:02:49.8]} 7... e6 {[%clk 0:02:58.3]} 8. Rc1 {[%clk 0:02:40.8]}
8... a6 {[%clk 0:02:57]} 9. Nge2 {[%clk 0:02:35.2]} 9... Bd6 {[%clk 0:02:57.9]}
10. Bf4 {[%clk 0:02:35.1]} 10... Bxf4 {[%clk 0:02:47]} 11. Nxf4 {[%clk
0:02:35.6]} 11... Nb8 {[%clk 0:02:48.9]} 12. Qa4+ {[%clk 0:02:13.6]} 12... Nc6
{[%clk 0:02:47.9]} 13. O-O {[%clk 0:01:44.7]} 13... g5 {[%clk 0:02:39.7]} 14.
Nfe2 {[%clk 0:01:34.6]} 14... O-O {[%clk 0:02:41.2]} 15. f3 {[%clk 0:01:22.3]}
15... Bd7 {[%clk 0:02:41.9]} 16. Qd1 {[%clk 0:01:12]} 16... Rc8 {[%clk 0:02:34]}
17. Na4 {[%clk 0:01:05.5]} 17... e5 {[%clk 0:02:28.4]} 18. dxe5 {[%clk
0:00:58.9]} 18... Nxe5 {[%clk 0:02:30.3]} 19. Nc5 {[%clk 0:00:45.5]} 19... Nxd3
{[%clk 0:02:10.6]} 20. Qxd3 {[%clk 0:00:47.4]} 20... Bb5 {[%clk 0:02:09.2]} 21.
Qd2 {[%clk 0:00:33.6]} 21... Qe7 {[%clk 0:02:05.1]} 22. b4 {[%clk 0:00:19.4]}
22... b6 {[%clk 0:02:05]} 23. Nb3 {[%clk 0:00:16]} 23... Rce8 {[%clk 0:01:53.4]}
24. Rfe1 {[%clk 0:00:03.6]} 24... Qxe3+ {[%clk 0:01:51.7]} 25. Qxe3 {[%clk
0:00:04.6]} 25... Rxe3 {[%clk 0:01:53.6]} 26. Ned4 {[%clk 0:00:05.4]} 26... f4
{[%clk 0:01:44.4]} 27. Nf5 {[%clk 0:00:04.4]} 27... Rxe1+ {[%clk 0:01:41.7]} 28.
Rxe1 {[%clk 0:00:06.3]} 28... Kf7 {[%clk 0:01:28.3]} 29. Nd6+ {[%clk 0:00:02.7]}
29... Kg6 {[%clk 0:01:28.9]} 30. Nxb5 {[%clk 0:00:04.6]} 30... axb5 {[%clk
0:01:30.1]} 31. Nd4 {[%clk 0:00:06.5]} 31... Ra8 {[%clk 0:01:30.4]} 32. Re2
{[%clk 0:00:07]} 32... Ra4 {[%clk 0:01:31.3]} 33. Nc6 {[%clk 0:00:06.3]} 33...
d4 {[%clk 0:01:27]} 34. Rd2 {[%clk 0:00:06.9]} 34... Nd5 {[%clk 0:01:27.3]} 35.
Rxd4 {[%clk 0:00:08.1]} 35... Nc3 {[%clk 0:01:23.5]} 36. Rd6+ {[%clk 0:00:08.1]}
36... Kf5 {[%clk 0:01:22.9]} 37. Nd4+ {[%clk 0:00:07.7]} 37... Ke5 {[%clk
0:01:24.1]} 38. Rxb6 {[%clk 0:00:02.7]} 38... Kxd4 {[%clk 0:01:24]} 0-1

[Event "*** Titled Tuesday Blitz"]
[Site "Chess.com"]
[Date "2018.08.07"]
[Round "8"]
[White "dmosesov"]
[Black "ChrisTool2"]
[Result "0-1"]
[WhiteElo "2266"]
[BlackElo "2262"]
[TimeControl "180+2"]
[EndTime "14:48:29 PDT"]
[Termination "ChrisTool2 won by checkmate"]

1. e4 {[%clk 0:03:01.9]} 1... e6 {[%clk 0:02:56]} 2. d4 {[%clk 0:03:02.6]} 2...
d5 {[%clk 0:02:56.7]} 3. Nd2 {[%clk 0:03:03.6]} 3... Nf6 {[%clk 0:02:57.4]} 4.
e5 {[%clk 0:03:04.9]} 4... Nfd7 {[%clk 0:02:58.1]} 5. Bd3 {[%clk 0:03:06.5]}
5... c5 {[%clk 0:03:00]} 6. c3 {[%clk 0:03:08]} 6... Nc6 {[%clk 0:03:01.5]} 7.
Ne2 {[%clk 0:03:08.8]} 7... cxd4 {[%clk 0:03:02.4]} 8. cxd4 {[%clk 0:03:10.1]}
8... f6 {[%clk 0:03:03.9]} 9. exf6 {[%clk 0:03:12]} 9... Nxf6 {[%clk 0:03:04.4]}
10. O-O {[%clk 0:03:10.6]} 10... Bd6 {[%clk 0:03:03.7]} 11. Nf3 {[%clk
0:03:11.7]} 11... Qc7 {[%clk 0:03:03.3]} 12. h3 {[%clk 0:03:08.7]} 12... O-O
{[%clk 0:03:02.1]} 13. Be3 {[%clk 0:03:09.2]} 13... Bd7 {[%clk 0:02:54.9]} 14.
Rc1 {[%clk 0:03:09.4]} 14... Be8 {[%clk 0:02:41.5]} 15. Qc2 {[%clk 0:02:57.1]}
15... Qe7 {[%clk 0:02:04]} 16. a3 {[%clk 0:02:40.8]} 16... Bh5 {[%clk
0:02:04.1]} 17. Ng5 {[%clk 0:02:12.9]} 17... h6 {[%clk 0:01:19.4]} 18. Nh7
{[%clk 0:02:12.3]} 18... Bxe2 {[%clk 0:01:06]} 19. Nxf6+ {[%clk 0:02:11.4]}
19... Rxf6 {[%clk 0:00:59.6]} 20. Qxe2 {[%clk 0:02:11]} 20... e5 {[%clk
0:00:54.5]} 21. dxe5 {[%clk 0:02:06.3]} 21... Nxe5 {[%clk 0:00:49.5]} 22. Rfd1
{[%clk 0:01:42.9]} 22... Raf8 {[%clk 0:00:38]} 23. Bxa7 {[%clk 0:01:16.5]} 23...
Qf7 {[%clk 0:00:20.7]} 24. Bb1 {[%clk 0:01:05.9]} 24... Nc4 {[%clk 0:00:13.8]}
25. Ba2 {[%clk 0:00:25.8]} 25... Re6 {[%clk 0:00:12.4]} 26. Qc2 {[%clk 0:00:19]}
26... Qf4 {[%clk 0:00:12.4]} 27. Rxd5 {[%clk 0:00:17.5]} 27... Qh2+ {[%clk
0:00:12.2]} 28. Kf1 {[%clk 0:00:18.9]} 28... Qh1# {[%clk 0:00:13.2]} 0-1

[Event "*** Titled Tuesday Blitz"]
[Site "Chess.com"]
[Date "2018.08.07"]
[Round "8"]
[White "morphy1984"]
[Black "JSMastropiero"]
[Result "0-1"]
[WhiteElo "2486"]
[BlackElo "2337"]
[TimeControl "180+2"]
[EndTime "14:48:33 PDT"]
[Termination "JSMastropiero won by resignation"]

1. e4 {[%clk 0:03:01.9]} 1... e5 {[%clk 0:02:59.5]} 2. Nf3 {[%clk 0:03:02.4]}
2... Nc6 {[%clk 0:02:59.6]} 3. d4 {[%clk 0:03:03.1]} 3... exd4 {[%clk
0:02:59.4]} 4. Nxd4 {[%clk 0:03:03.7]} 4... Bb4+ {[%clk 0:03:00.3]} 5. c3 {[%clk
0:03:02]} 5... Bc5 {[%clk 0:03:00.9]} 6. Be3 {[%clk 0:03:02.2]} 6... Bb6 {[%clk
0:03:01.2]} 7. Nf5 {[%clk 0:03:01.8]} 7... g6 {[%clk 0:02:58.8]} 8. Bxb6 {[%clk
0:02:59.5]} 8... axb6 {[%clk 0:03:00.7]} 9. Ne3 {[%clk 0:03:00.2]} 9... Nf6
{[%clk 0:02:56.9]} 10. f3 {[%clk 0:02:59.9]} 10... O-O {[%clk 0:02:55.9]} 11. c4
{[%clk 0:02:56.8]} 11... d5 {[%clk 0:02:45.8]} 12. cxd5 {[%clk 0:02:49.8]} 12...
Nxe4 {[%clk 0:02:37.2]} 13. fxe4 {[%clk 0:02:28.4]} 13... Qh4+ {[%clk
0:02:35.9]} 14. Kd2 {[%clk 0:02:26.5]} 14... Qxe4 {[%clk 0:01:54.7]} 15. Nc3
{[%clk 0:02:24.3]} 15... Qd4+ {[%clk 0:01:48.6]} 16. Bd3 {[%clk 0:01:20.4]}
16... Nb4 {[%clk 0:01:17.7]} 17. Qe2 {[%clk 0:01:20]} 17... Re8 {[%clk
0:01:10.6]} 18. a3 {[%clk 0:01:19.6]} 18... Bg4 {[%clk 0:00:30.4]} 19. Qxg4
{[%clk 0:00:56.8]} 19... Qxe3+ {[%clk 0:00:27.9]} 20. Kd1 {[%clk 0:00:56.4]}
20... Nxd3 {[%clk 0:00:25.7]} 21. Kc2 {[%clk 0:00:48.6]} 21... Nf2 {[%clk
0:00:21.6]} 22. Qc4 {[%clk 0:00:40.4]} 22... Nxh1 {[%clk 0:00:22.1]} 23. Rxh1
{[%clk 0:00:40.7]} 23... Qf2+ {[%clk 0:00:22.5]} 24. Kb3 {[%clk 0:00:41]} 24...
Qc5 {[%clk 0:00:23.4]} 25. Qf4 {[%clk 0:00:36]} 25... Qe3 {[%clk 0:00:21.8]} 26.
Qxc7 {[%clk 0:00:30.3]} 26... Rac8 {[%clk 0:00:20.7]} 27. Qxb7 {[%clk
0:00:26.9]} 27... Qc5 {[%clk 0:00:21.5]} 28. Ka2 {[%clk 0:00:20.4]} 28... b5
{[%clk 0:00:21.3]} 29. Rf1 {[%clk 0:00:20.1]} 29... Qc4+ {[%clk 0:00:22.1]} 0-1

[Event "*** Titled Tuesday Blitz"]
[Site "Chess.com"]
[Date "2018.08.07"]
[Round "8"]
[White "LittlePeasant"]
[Black "ahmadzada13"]
[Result "0-1"]
[WhiteElo "2774"]
[BlackElo "2661"]
[TimeControl "180+2"]
[EndTime "14:48:39 PDT"]
[Termination "ahmadzada13 won by resignation"]

1. Nf3 {[%clk 0:03:01.9]} 1... c5 {[%clk 0:02:59.1]} 2. b3 {[%clk 0:03:02.6]}
2... Nc6 {[%clk 0:02:59.9]} 3. Bb2 {[%clk 0:03:03.3]} 3... d6 {[%clk 0:03:00.8]}
4. c4 {[%clk 0:03:02.7]} 4... e5 {[%clk 0:03:01.6]} 5. e3 {[%clk 0:03:03.8]}
5... Nf6 {[%clk 0:02:59]} 6. d4 {[%clk 0:03:02.8]} 6... cxd4 {[%clk 0:02:56.6]}
7. exd4 {[%clk 0:03:03.8]} 7... e4 {[%clk 0:02:56.9]} 8. Nfd2 {[%clk 0:03:03.2]}
8... d5 {[%clk 0:02:53.5]} 9. Nc3 {[%clk 0:02:59.9]} 9... Bg4 {[%clk 0:02:34]}
10. Be2 {[%clk 0:02:53.3]} 10... Bxe2 {[%clk 0:02:31.2]} 11. Nxe2 {[%clk
0:02:54.2]} 11... Nb4 {[%clk 0:02:25.5]} 12. O-O {[%clk 0:02:51.4]} 12... Nd3
{[%clk 0:02:24.6]} 13. Bc3 {[%clk 0:02:49.5]} 13... Bd6 {[%clk 0:02:25.6]} 14.
h3 {[%clk 0:02:39.4]} 14... O-O {[%clk 0:02:21.6]} 15. cxd5 {[%clk 0:02:38]}
15... Nf4 {[%clk 0:02:01.5]} 16. Nxf4 {[%clk 0:02:24.2]} 16... Bxf4 {[%clk
0:02:02.7]} 17. Re1 {[%clk 0:02:23.3]} 17... Nxd5 {[%clk 0:02:01.6]} 18. Nxe4
{[%clk 0:02:04]} 18... f5 {[%clk 0:01:59.9]} 19. Nc5 {[%clk 0:02:05.1]} 19...
Nxc3 {[%clk 0:01:58.1]} 20. Qf3 {[%clk 0:01:59.2]} 20... Bd2 {[%clk 0:01:49.2]}
21. Ne6 {[%clk 0:01:37.2]} 21... Qd5 {[%clk 0:01:47.5]} 22. Qxd5 {[%clk
0:01:37.9]} 22... Nxd5 {[%clk 0:01:47.6]} 23. Re5 {[%clk 0:01:39.8]} 23... Rfe8
{[%clk 0:01:36.7]} 24. Rd1 {[%clk 0:01:39.7]} 24... Bb4 {[%clk 0:01:28]} 25. f4
{[%clk 0:01:37.4]} 25... g6 {[%clk 0:01:26.5]} 26. g3 {[%clk 0:01:28.4]} 26...
Bd6 {[%clk 0:01:23.3]} 27. Ree1 {[%clk 0:01:29.4]} 27... Nc3 {[%clk 0:01:23.8]}
28. Rc1 {[%clk 0:01:28.3]} 28... Ne4 {[%clk 0:01:23.4]} 29. Nc7 {[%clk
0:01:28.3]} 29... Bxc7 {[%clk 0:01:24]} 30. Rxc7 {[%clk 0:01:30.2]} 30... Nxg3
{[%clk 0:01:24]} 31. Rxe8+ {[%clk 0:01:30.7]} 31... Rxe8 {[%clk 0:01:25.3]} 32.
Rxb7 {[%clk 0:01:32.6]} 32... Ne2+ {[%clk 0:01:25.9]} 33. Kh2 {[%clk 0:01:32.4]}
33... Nxd4 {[%clk 0:01:27.1]} 34. Rxa7 {[%clk 0:01:33.5]} 34... Re2+ {[%clk
0:01:28.4]} 35. Kg3 {[%clk 0:01:33.1]} 35... Re3+ {[%clk 0:01:27.7]} 36. Kg2
{[%clk 0:01:32.8]} 36... Ne6 {[%clk 0:01:27.2]} 37. b4 {[%clk 0:01:29.2]} 37...
Nxf4+ {[%clk 0:01:26.6]} 38. Kf2 {[%clk 0:01:30.5]} 38... Rxh3 {[%clk
0:01:25.7]} 39. b5 {[%clk 0:01:32]} 39... Nd5 {[%clk 0:01:26.9]} 40. a4 {[%clk
0:01:31.4]} 40... Ra3 {[%clk 0:01:27.9]} 41. a5 {[%clk 0:01:30]} 41... Ra2+
{[%clk 0:01:22.2]} 42. Kg1 {[%clk 0:01:23.4]} 42... f4 {[%clk 0:00:55]} 43. b6
{[%clk 0:01:24.1]} 43... f3 {[%clk 0:00:55]} 44. b7 {[%clk 0:01:24.9]} 44... f2+
{[%clk 0:00:54.6]} 45. Kg2 {[%clk 0:01:26.8]} 45... Ne3+ {[%clk 0:00:52.5]} 46.
Kg3 {[%clk 0:01:28.2]} 46... Rb2 {[%clk 0:00:51.5]} 47. b8=Q+ {[%clk 0:01:21.3]}
47... Rxb8 {[%clk 0:00:50.5]} 48. Kxf2 {[%clk 0:01:23.2]} 48... Nd5 {[%clk
0:00:47.1]} 49. a6 {[%clk 0:01:25.1]} 49... Nb4 {[%clk 0:00:46.6]} 50. Rb7
{[%clk 0:01:22.8]} 50... Rxb7 {[%clk 0:00:47]} 51. axb7 {[%clk 0:01:24.7]} 51...
Nc6 {[%clk 0:00:48.3]} 52. Ke3 {[%clk 0:01:26.6]} 52... g5 {[%clk 0:00:49.6]}
53. Ke4 {[%clk 0:01:28.5]} 53... g4 {[%clk 0:00:50.2]} 54. Kd5 {[%clk
0:01:30.4]} 54... Nb8 {[%clk 0:00:50.6]} 55. Kd6 {[%clk 0:01:32]} 55... g3
{[%clk 0:00:52.2]} 56. Kc7 {[%clk 0:01:33.6]} 56... g2 {[%clk 0:00:53.3]} 57.
Kxb8 {[%clk 0:01:35.5]} 57... g1=Q {[%clk 0:00:54.7]} 58. Ka8 {[%clk 0:01:37.4]}
58... Qa1+ {[%clk 0:00:54]} 0-1